[Event "*** Titled Tuesday Blitz"]
[Site "Chess.com"]
[Date "2019.05.07"]
[Round "9"]
[White "zurzan"]
[Black "PNEPaul"]
[Result "1-0"]
[WhiteElo "1994"]
[BlackElo "1840"]
[TimeControl "180+2"]
[EndTime "15:03:58 PDT"]
[Termination "zurzan won by resignation"]

1. e4 {[%clk 0:03:01.9]} 1... e5 {[%clk 0:02:59.2]} 2. Nf3 {[%clk 0:03:02.2]}
2... Nc6 {[%clk 0:02:59.9]} 3. Bc4 {[%clk 0:03:02.6]} 3... Be7 {[%clk
0:02:59.5]} 4. O-O {[%clk 0:03:02.5]} 4... Nf6 {[%clk 0:03:00.2]} 5. Nc3 {[%clk
0:02:55.6]} 5... Nxe4 {[%clk 0:02:58.6]} 6. Nxe4 {[%clk 0:02:55.4]} 6... d5
{[%clk 0:02:59.4]} 7. Bd3 {[%clk 0:02:56.2]} 7... dxe4 {[%clk 0:02:58.8]} 8.
Bxe4 {[%clk 0:02:58.1]} 8... O-O {[%clk 0:02:55.2]} 9. Bxc6 {[%clk 0:02:58.2]}
9... bxc6 {[%clk 0:02:55.4]} 10. Nxe5 {[%clk 0:02:59.1]} 10... Bd6 {[%clk
0:02:55.6]} 11. d4 {[%clk 0:02:55.9]} 11... Bb7 {[%clk 0:02:52.8]} 12. Nc4
{[%clk 0:02:37.6]} 12... Ba6 {[%clk 0:02:46]} 13. b3 {[%clk 0:02:29.8]} 13...
Bxc4 {[%clk 0:02:36.3]} 14. bxc4 {[%clk 0:02:30.2]} 14... Qf6 {[%clk 0:02:34.9]}
15. c3 {[%clk 0:02:22.9]} 15... Rad8 {[%clk 0:02:33.4]} 16. Be3 {[%clk
0:02:12.8]} 16... Rfe8 {[%clk 0:02:32.5]} 17. Qg4 {[%clk 0:02:07.9]} 17... c5
{[%clk 0:02:09.5]} 18. Bg5 {[%clk 0:02:04.4]} 18... Qg6 {[%clk 0:02:08.3]} 19.
Qh4 {[%clk 0:01:56]} 19... Re4 {[%clk 0:01:51]} 20. Bxd8 {[%clk 0:01:51.8]}
20... Rxh4 {[%clk 0:01:48.4]} 21. Bxh4 {[%clk 0:01:53.7]} 21... Qh5 {[%clk
0:01:35.4]} 22. Bg3 {[%clk 0:01:43.6]} 22... Bxg3 {[%clk 0:01:34.5]} 23. hxg3
{[%clk 0:01:44.7]} 23... cxd4 {[%clk 0:01:34.7]} 24. cxd4 {[%clk 0:01:45.2]}
24... Qe2 {[%clk 0:01:33.8]} 25. Rab1 {[%clk 0:01:36.6]} 25... h6 {[%clk
0:01:33.4]} 26. Rb7 {[%clk 0:01:25.3]} 26... Qxc4 {[%clk 0:01:31]} 27. Rxa7
{[%clk 0:01:25.9]} 27... c6 {[%clk 0:01:28.8]} 28. a4 {[%clk 0:01:24.8]} 28...
Qxd4 {[%clk 0:01:28.2]} 29. Ra8+ {[%clk 0:01:25.1]} 29... Kh7 {[%clk 0:01:28.1]}
30. a5 {[%clk 0:01:25.5]} 30... c5 {[%clk 0:01:29.1]} 31. a6 {[%clk 0:01:26.1]}
31... c4 {[%clk 0:01:30.2]} 32. a7 {[%clk 0:01:25.2]} 32... c3 {[%clk
0:01:27.8]} 33. Rh8+ {[%clk 0:01:24.2]} 33... Kxh8 {[%clk 0:01:27.7]} 34. a8=Q+
{[%clk 0:01:24.9]} 34... Kh7 {[%clk 0:01:28.7]} 35. Qc6 {[%clk 0:01:21.3]} 1-0

[Event "*** Titled Tuesday Blitz"]
[Site "Chess.com"]
[Date "2019.05.07"]
[Round "9"]
[White "Hikaru"]
[Black "RegZryt"]
[Result "1-0"]
[WhiteElo "3192"]
[BlackElo "2544"]
[TimeControl "180+2"]
[EndTime "15:04:05 PDT"]
[Termination "Hikaru won by resignation"]

1. Nf3 {[%clk 0:03:01.9]} 1... d5 {[%clk 0:02:59.7]} 2. e3 {[%clk 0:03:02.9]}
2... Nf6 {[%clk 0:02:55.8]} 3. c4 {[%clk 0:03:02.6]} 3... e6 {[%clk 0:02:56.9]}
4. Nc3 {[%clk 0:03:01.7]} 4... c6 {[%clk 0:02:53.1]} 5. b3 {[%clk 0:03:01.2]}
5... Nbd7 {[%clk 0:02:54.1]} 6. d4 {[%clk 0:03:01.6]} 6... Bb4 {[%clk
0:02:40.5]} 7. Bd2 {[%clk 0:03:00.9]} 7... Qa5 {[%clk 0:02:41.5]} 8. Qc2 {[%clk
0:03:01.6]} 8... O-O {[%clk 0:02:30.9]} 9. a3 {[%clk 0:03:01.4]} 9... Bxc3
{[%clk 0:02:22]} 10. Bxc3 {[%clk 0:03:03.3]} 10... Qc7 {[%clk 0:02:23.5]} 11.
Bd3 {[%clk 0:03:04.2]} 11... Re8 {[%clk 0:02:16.6]} 12. Rc1 {[%clk 0:03:04.4]}
12... b6 {[%clk 0:02:14.4]} 13. cxd5 {[%clk 0:03:01.1]} 13... exd5 {[%clk
0:02:15.1]} 14. Ne5 {[%clk 0:02:58.7]} 14... Bb7 {[%clk 0:02:15.3]} 15. O-O
{[%clk 0:02:59.2]} 15... Nxe5 {[%clk 0:01:46.5]} 16. dxe5 {[%clk 0:02:59.5]}
16... Ng4 {[%clk 0:01:47.8]} 17. Bxh7+ {[%clk 0:02:55]} 17... Kh8 {[%clk
0:01:44]} 18. Bf5 {[%clk 0:02:44]} 18... Nxe5 {[%clk 0:01:44.3]} 19. f4 {[%clk
0:02:45.1]} 19... Nd7 {[%clk 0:01:37.9]} 20. Rf3 {[%clk 0:02:45.7]} 20... Kg8
{[%clk 0:01:19.1]} 21. Rg3 {[%clk 0:02:42.7]} 21... f6 {[%clk 0:00:45.3]} 22.
Bxd7 {[%clk 0:02:41.6]} 22... Qxd7 {[%clk 0:00:46.8]} 23. Bxf6 {[%clk
0:02:42.7]} 23... Re7 {[%clk 0:00:48.4]} 24. Bxe7 {[%clk 0:02:43.2]} 24... Qxe7
{[%clk 0:00:50.3]} 25. Rh3 {[%clk 0:02:40.6]} 25... Re8 {[%clk 0:00:43.1]} 26.
Qh7+ {[%clk 0:02:39.8]} 26... Kf7 {[%clk 0:00:44.3]} 27. b4 {[%clk 0:02:31.5]}
27... Qf6 {[%clk 0:00:29.3]} 28. Qh5+ {[%clk 0:02:30.5]} 28... Kf8 {[%clk
0:00:30]} 29. Rg3 {[%clk 0:02:28.6]} 29... Re6 {[%clk 0:00:19.7]} 30. Rg5 {[%clk
0:02:25.5]} 30... Ke7 {[%clk 0:00:19.6]} 31. Rf5 {[%clk 0:02:23.7]} 31... g6
{[%clk 0:00:17.7]} 32. Qh7+ {[%clk 0:02:21.9]} 1-0

[Event "*** Titled Tuesday Blitz"]
[Site "Chess.com"]
[Date "2019.05.07"]
[Round "9"]
[White "r31415"]
[Black "NateSolon"]
[Result "0-1"]
[WhiteElo "2369"]
[BlackElo "2500"]
[TimeControl "180+2"]
[EndTime "15:04:56 PDT"]
[Termination "NateSolon won by checkmate"]

1. e4 {[%clk 0:01:34.6]} 1... c5 {[%clk 0:02:46.8]} 2. Nf3 {[%clk 0:01:33.7]}
2... d6 {[%clk 0:02:48.2]} 3. d4 {[%clk 0:01:34.9]} 3... Nf6 {[%clk 0:02:49.5]}
4. Nc3 {[%clk 0:01:35.8]} 4... cxd4 {[%clk 0:02:50.6]} 5. Nxd4 {[%clk
0:01:37.7]} 5... Nc6 {[%clk 0:02:52.1]} 6. g3 {[%clk 0:01:37.6]} 6... g6 {[%clk
0:02:51.4]} 7. Bg2 {[%clk 0:01:38]} 7... Nxd4 {[%clk 0:02:48.3]} 8. Qxd4 {[%clk
0:01:38.5]} 8... Bg7 {[%clk 0:02:50]} 9. Be3 {[%clk 0:01:37.2]} 9... O-O {[%clk
0:02:49.8]} 10. Qd2 {[%clk 0:01:38.2]} 10... Ng4 {[%clk 0:02:45.9]} 11. Bd4
{[%clk 0:01:33.7]} 11... e5 {[%clk 0:02:40.3]} 12. Be3 {[%clk 0:01:34.7]} 12...
Nxe3 {[%clk 0:02:41.4]} 13. Qxe3 {[%clk 0:01:35.7]} 13... f5 {[%clk 0:02:33.3]}
14. O-O-O {[%clk 0:01:25.1]} 14... f4 {[%clk 0:02:29]} 15. Qd3 {[%clk
0:01:19.9]} 15... fxg3 {[%clk 0:02:21.5]} 16. fxg3 {[%clk 0:01:19.2]} 16... Rf2
{[%clk 0:02:17.2]} 17. Rhg1 {[%clk 0:00:34.2]} 17... Bg4 {[%clk 0:02:16.2]} 18.
Rdf1 {[%clk 0:00:30.5]} 18... Bh6+ {[%clk 0:02:17.1]} 19. Kb1 {[%clk 0:00:30.7]}
19... Rd2 {[%clk 0:02:18]} 20. Qc4+ {[%clk 0:00:31.7]} 20... Kh8 {[%clk
0:02:19.1]} 21. Rf7 {[%clk 0:00:17.9]} 21... Rc8 {[%clk 0:02:19.9]} 22. Qb3
{[%clk 0:00:18.1]} 22... Be3 {[%clk 0:02:06.1]} 23. Re1 {[%clk 0:00:11.6]} 23...
Rxg2 {[%clk 0:01:59.8]} 24. Nd5 {[%clk 0:00:05.4]} 24... Be6 {[%clk 0:01:31.8]}
25. Qxb7 {[%clk 0:00:03.2]} 25... Bxf7 {[%clk 0:01:29.9]} 26. Qxf7 {[%clk
0:00:05.1]} 26... Rcxc2 {[%clk 0:01:26.3]} 27. Nxe3 {[%clk 0:00:04.8]} 27...
Rxb2+ {[%clk 0:01:27.5]} 28. Ka1 {[%clk 0:00:05.4]} 28... Rxa2+ {[%clk
0:01:27.8]} 29. Kb1 {[%clk 0:00:05.4]} 29... Qb6+ {[%clk 0:01:24.7]} 30. Kc1
{[%clk 0:00:07.3]} 30... Ra1# {[%clk 0:01:23]} 0-1

[Event "*** Titled Tuesday Blitz"]
[Site "Chess.com"]
[Date "2019.05.07"]
[Round "9"]
[White "mitrabhaa"]
[Black "severomorskij"]
[Result "1-0"]
[WhiteElo "2694"]
[BlackElo "2766"]
[TimeControl "180+2"]
[EndTime "15:05:07 PDT"]
[Termination "mitrabhaa won by resignation"]

1. Nf3 {[%clk 0:03:01.9]} 1... Nf6 {[%clk 0:02:59.4]} 2. d4 {[%clk 0:03:03.4]}
2... d5 {[%clk 0:02:59.3]} 3. c4 {[%clk 0:03:03.7]} 3... e6 {[%clk 0:03:00.1]}
4. g3 {[%clk 0:03:04.5]} 4... Bb4+ {[%clk 0:03:00.7]} 5. Bd2 {[%clk 0:03:05.1]}
5... Bd6 {[%clk 0:03:01.5]} 6. Bg2 {[%clk 0:03:05.1]} 6... O-O {[%clk
0:02:58.4]} 7. O-O {[%clk 0:03:04.8]} 7... c6 {[%clk 0:02:55.4]} 8. Qc2 {[%clk
0:03:05.7]} 8... Nbd7 {[%clk 0:02:55.6]} 9. Nc3 {[%clk 0:03:04.5]} 9... dxc4
{[%clk 0:02:54.9]} 10. a4 {[%clk 0:03:03.9]} 10... e5 {[%clk 0:02:44.9]} 11.
Rfd1 {[%clk 0:03:01.3]} 11... exd4 {[%clk 0:02:34.1]} 12. Nxd4 {[%clk
0:03:01.9]} 12... Qc7 {[%clk 0:02:27]} 13. Bg5 {[%clk 0:02:57]} 13... h6 {[%clk
0:02:26.2]} 14. Bxf6 {[%clk 0:02:53.9]} 14... Nxf6 {[%clk 0:02:27]} 15. Ndb5
{[%clk 0:02:55.2]} 15... cxb5 {[%clk 0:02:24.8]} 16. Nxb5 {[%clk 0:02:55.7]}
16... Qc5 {[%clk 0:02:14.4]} 17. Nxd6 {[%clk 0:02:54.8]} 17... Be6 {[%clk
0:02:09.5]} 18. Nxb7 {[%clk 0:02:52.1]} 18... Qh5 {[%clk 0:02:07.9]} 19. Nd6
{[%clk 0:02:48.8]} 19... Rab8 {[%clk 0:02:06]} 20. Rd4 {[%clk 0:02:34.4]} 20...
Qc5 {[%clk 0:01:36.5]} 21. Rad1 {[%clk 0:02:31.8]} 21... Rb4 {[%clk 0:01:31.3]}
22. Nb5 {[%clk 0:02:23.3]} 22... Bf5 {[%clk 0:01:07.5]} 23. e4 {[%clk
0:02:18.4]} 23... Bg4 {[%clk 0:01:04.6]} 24. R1d2 {[%clk 0:02:18.8]} 24... Be6
{[%clk 0:00:49.1]} 25. h3 {[%clk 0:02:15.7]} 25... g6 {[%clk 0:00:43.2]} 26. Rd8
{[%clk 0:02:06.1]} 26... Rxd8 {[%clk 0:00:43.1]} 27. Rxd8+ {[%clk 0:02:06.1]}
27... Kg7 {[%clk 0:00:44.2]} 28. Nd4 {[%clk 0:01:58.6]} 28... Bd7 {[%clk
0:00:34.2]} 29. Qc3 {[%clk 0:01:44.6]} 29... Rxa4 {[%clk 0:00:31.2]} 30. Rxd7
{[%clk 0:01:32.6]} 30... Ra1+ {[%clk 0:00:22.4]} 31. Kh2 {[%clk 0:01:31.6]}
31... Qe5 {[%clk 0:00:14.6]} 32. Nf5+ {[%clk 0:01:29.1]} 1-0

[Event "*** Titled Tuesday Blitz"]
[Site "Chess.com"]
[Date "2019.05.07"]
[Round "9"]
[White "GMJimKnopf"]
[Black "The_Chess_Coach"]
[Result "1-0"]
[WhiteElo "2375"]
[BlackElo "2182"]
[TimeControl "180+2"]
[EndTime "15:05:16 PDT"]
[Termination "GMJimKnopf won by resignation"]

1. e4 {[%clk 0:03:01.9]} 1... e6 {[%clk 0:02:56.6]} 2. d4 {[%clk 0:03:02.7]}
2... d5 {[%clk 0:02:58.5]} 3. exd5 {[%clk 0:03:04.4]} 3... exd5 {[%clk
0:02:59.8]} 4. Nf3 {[%clk 0:03:06.3]} 4... Bg4 {[%clk 0:03:01.1]} 5. Qe2+ {[%clk
0:03:06]} 5... Qe7 {[%clk 0:02:44]} 6. Be3 {[%clk 0:03:06.1]} 6... c6 {[%clk
0:02:43.7]} 7. Nc3 {[%clk 0:03:04.6]} 7... Nf6 {[%clk 0:02:42]} 8. O-O-O {[%clk
0:03:02.3]} 8... Nbd7 {[%clk 0:02:39.2]} 9. h3 {[%clk 0:03:03.5]} 9... Bh5
{[%clk 0:02:38.7]} 10. g4 {[%clk 0:03:04.9]} 10... Bg6 {[%clk 0:02:39.8]} 11.
Bg2 {[%clk 0:03:04.3]} 11... h5 {[%clk 0:02:38.7]} 12. g5 {[%clk 0:03:00.5]}
12... Ne4 {[%clk 0:02:39.7]} 13. h4 {[%clk 0:02:57.4]} 13... O-O-O {[%clk
0:02:38.6]} 14. Bh3 {[%clk 0:02:55.3]} 14... Nxc3 {[%clk 0:02:32.7]} 15. bxc3
{[%clk 0:02:56.5]} 15... Qa3+ {[%clk 0:02:30]} 16. Kd2 {[%clk 0:02:06.9]} 16...
Bd6 {[%clk 0:01:35.5]} 17. Ra1 {[%clk 0:01:49.4]} 17... Kc7 {[%clk 0:01:09.3]}
18. Rhb1 {[%clk 0:01:41.2]} 18... Nb6 {[%clk 0:01:07.7]} 19. Rb3 {[%clk
0:01:32]} 19... Qa5 {[%clk 0:01:08.6]} 20. Rab1 {[%clk 0:01:14.3]} 20... Rhe8
{[%clk 0:01:01.1]} 21. Ne5 {[%clk 0:01:03]} 21... Rxe5 {[%clk 0:00:39.9]} 22.
dxe5 {[%clk 0:01:03.4]} 22... Bxe5 {[%clk 0:00:41.4]} 23. Bxb6+ {[%clk
0:00:53.5]} 23... Kd6 {[%clk 0:00:25.5]} 24. Bxa5 {[%clk 0:00:50.1]} 24... Bf4+
{[%clk 0:00:25.2]} 25. Kd1 {[%clk 0:00:42.3]} 25... b5 {[%clk 0:00:21.5]} 26.
Bb4+ {[%clk 0:00:42.6]} 26... c5 {[%clk 0:00:20.2]} 27. Bxc5+ {[%clk 0:00:39]}
1-0

[Event "*** Titled Tuesday Blitz"]
[Site "Chess.com"]
[Date "2019.05.07"]
[Round "9"]
[White "Vincent_Vega95"]
[Black "adriangschnitzer"]
[Result "1/2-1/2"]
[WhiteElo "2666"]
[BlackElo "2445"]
[TimeControl "180+2"]
[EndTime "15:05:21 PDT"]
[Termination "Game drawn by agreement"]

1. d4 {[%clk 0:03:01.9]} 1... Nf6 {[%clk 0:03:00.7]} 2. c4 {[%clk 0:03:02.6]}
2... c5 {[%clk 0:03:02]} 3. d5 {[%clk 0:03:03.5]} 3... b5 {[%clk 0:03:03.2]} 4.
cxb5 {[%clk 0:03:02.4]} 4... a6 {[%clk 0:03:04.6]} 5. bxa6 {[%clk 0:03:03.7]}
5... g6 {[%clk 0:03:06]} 6. Nc3 {[%clk 0:03:04.8]} 6... Bg7 {[%clk 0:03:07.5]}
7. e4 {[%clk 0:03:05.8]} 7... O-O {[%clk 0:03:09]} 8. Nf3 {[%clk 0:03:06.7]}
8... Qa5 {[%clk 0:03:09.7]} 9. a7 {[%clk 0:03:03.8]} 9... Nxe4 {[%clk
0:03:07.8]} 10. axb8=Q {[%clk 0:02:52.2]} 10... Rxb8 {[%clk 0:03:08.5]} 11. Qc2
{[%clk 0:02:25.5]} 11... Nxc3 {[%clk 0:02:46.9]} 12. Bd2 {[%clk 0:02:25]} 12...
Qa4 {[%clk 0:02:37.5]} 13. b3 {[%clk 0:02:06.1]} 13... Qe4+ {[%clk 0:02:25.3]}
14. Qxe4 {[%clk 0:02:06.8]} 14... Nxe4 {[%clk 0:02:27.2]} 15. Rc1 {[%clk
0:02:08.4]} 15... d6 {[%clk 0:02:20.3]} 16. Bc4 {[%clk 0:02:06.8]} 16... Nxd2
{[%clk 0:02:07]} 17. Nxd2 {[%clk 0:02:07.2]} 17... Bh6 {[%clk 0:02:05.6]} 18.
Rc2 {[%clk 0:02:06.4]} 18... Bf5 {[%clk 0:02:05.4]} 19. Rc1 {[%clk 0:02:05.1]}
19... e6 {[%clk 0:01:50.7]} 20. dxe6 {[%clk 0:02:05.4]} 20... Rfe8 {[%clk
0:01:44.8]} 21. O-O {[%clk 0:01:59]} 21... fxe6 {[%clk 0:01:38.7]} 22. Rcd1
{[%clk 0:01:59.8]} 22... d5 {[%clk 0:01:33]} 23. Be2 {[%clk 0:01:55.8]} 23... e5
{[%clk 0:01:18.8]} 24. g4 {[%clk 0:01:54.9]} 24... Be6 {[%clk 0:01:11.2]} 25. a4
{[%clk 0:01:55.4]} 25... Bxd2 {[%clk 0:01:08.8]} 26. Rxd2 {[%clk 0:01:56.4]}
26... Rxb3 {[%clk 0:01:09.7]} 27. Re1 {[%clk 0:01:51.9]} 27... Ra3 {[%clk
0:01:00.4]} 28. Bb5 {[%clk 0:01:51.7]} 28... Rd8 {[%clk 0:00:54.3]} 29. Rxe5
{[%clk 0:01:52]} 29... Bxg4 {[%clk 0:00:52.3]} 30. Rexd5 {[%clk 0:01:46.8]}
30... Rxd5 {[%clk 0:00:52.1]} 31. Rxd5 {[%clk 0:01:47.6]} 31... Bf3 {[%clk
0:00:52.6]} 32. Rd8+ {[%clk 0:01:48]} 32... Kg7 {[%clk 0:00:50.5]} 33. h4 {[%clk
0:01:49.5]} 33... Kh6 {[%clk 0:00:41.4]} 34. Rd7 {[%clk 0:01:46.2]} 34... c4
{[%clk 0:00:18.5]} 35. Bxc4 {[%clk 0:01:35.4]} 35... Rxa4 {[%clk 0:00:19.3]} 36.
Bg8 {[%clk 0:01:36.7]} 36... Rxh4 {[%clk 0:00:16.3]} 37. Rxh7+ {[%clk
0:01:36.3]} 37... Kg5 {[%clk 0:00:17.5]} 38. Rxh4 {[%clk 0:01:37.7]} 38... Kxh4
{[%clk 0:00:19.4]} 1/2-1/2

[Event "*** Titled Tuesday Blitz"]
[Site "Chess.com"]
[Date "2019.05.07"]
[Round "9"]
[White "stepanosinovsky"]
[Black "EfrenRamos1"]
[Result "1-0"]
[WhiteElo "2418"]
[BlackElo "2338"]
[TimeControl "180+2"]
[EndTime "15:05:28 PDT"]
[Termination "stepanosinovsky won by resignation"]

1. Nf3 {[%clk 0:03:01.9]} 1... Nf6 {[%clk 0:02:59.7]} 2. g3 {[%clk 0:03:03.8]}
2... g6 {[%clk 0:03:00.4]} 3. Bg2 {[%clk 0:03:05.7]} 3... Bg7 {[%clk 0:03:01.9]}
4. O-O {[%clk 0:03:07.6]} 4... O-O {[%clk 0:03:01.9]} 5. d3 {[%clk 0:03:09.5]}
5... d5 {[%clk 0:03:02.1]} 6. Nbd2 {[%clk 0:03:11.4]} 6... c6 {[%clk 0:03:03.3]}
7. e4 {[%clk 0:03:12.9]} 7... a5 {[%clk 0:03:04.4]} 8. Re1 {[%clk 0:03:13.1]}
8... Na6 {[%clk 0:03:02.7]} 9. e5 {[%clk 0:03:10.2]} 9... Ne8 {[%clk 0:03:02.8]}
10. h4 {[%clk 0:03:10.4]} 10... Bg4 {[%clk 0:02:58.1]} 11. Nf1 {[%clk
0:03:08.6]} 11... Nc5 {[%clk 0:02:49.6]} 12. N1h2 {[%clk 0:03:09.2]} 12... Bc8
{[%clk 0:02:42.1]} 13. h5 {[%clk 0:03:08.3]} 13... a4 {[%clk 0:02:32.7]} 14. a3
{[%clk 0:03:02.7]} 14... Ne6 {[%clk 0:02:32.8]} 15. Bd2 {[%clk 0:02:47.5]} 15...
d4 {[%clk 0:02:29]} 16. Qc1 {[%clk 0:02:47.6]} 16... N8c7 {[%clk 0:02:28.3]} 17.
Bh6 {[%clk 0:02:48.2]} 17... Nd5 {[%clk 0:02:27.1]} 18. Re4 {[%clk 0:02:46.1]}
18... f5 {[%clk 0:02:25.8]} 19. Rh4 {[%clk 0:02:44]} 19... Qe8 {[%clk
0:02:16.2]} 20. Qd2 {[%clk 0:02:25]} 20... f4 {[%clk 0:02:14.7]} 21. hxg6 {[%clk
0:02:17.4]} 21... hxg6 {[%clk 0:02:11]} 22. Ng4 {[%clk 0:02:09.5]} 22... Rf5
{[%clk 0:02:09.2]} 23. c4 {[%clk 0:01:35.9]} 23... dxc3 {[%clk 0:02:07.3]} 24.
bxc3 {[%clk 0:01:37]} 24... Qf8 {[%clk 0:02:02.7]} 25. c4 {[%clk 0:01:21.8]}
25... Ndc7 {[%clk 0:02:00.4]} 26. d4 {[%clk 0:01:08.6]} 26... fxg3 {[%clk
0:01:56.6]} 27. Bxg7 {[%clk 0:01:04.3]} 27... gxf2+ {[%clk 0:01:56.7]} 28. Kxf2
{[%clk 0:01:01.2]} 28... Kxg7 {[%clk 0:01:45.1]} 29. Rah1 {[%clk 0:00:51.4]}
29... Ng5 {[%clk 0:01:38.7]} 30. Qxg5 {[%clk 0:00:49.7]} 30... Rxg5 {[%clk
0:01:36.2]} 31. Rh7+ {[%clk 0:00:50.2]} 31... Kg8 {[%clk 0:01:36.9]} 32. Rh8+
{[%clk 0:00:51.3]} 32... Kf7 {[%clk 0:01:35.4]} 33. Nxg5+ {[%clk 0:00:36.2]}
33... Ke8+ {[%clk 0:01:33.8]} 34. Rxf8+ {[%clk 0:00:37.1]} 34... Kxf8 {[%clk
0:01:34.8]} 35. Rh8+ {[%clk 0:00:36.2]} 35... Kg7 {[%clk 0:01:35.1]} 36. Rh7+
{[%clk 0:00:36.3]} 36... Kf8 {[%clk 0:01:33.2]} 37. Nh6 {[%clk 0:00:34.3]} 37...
Ne6 {[%clk 0:01:23]} 38. Nxe6+ {[%clk 0:00:21.8]} 38... Bxe6 {[%clk 0:01:23.3]}
39. Rh8+ {[%clk 0:00:23.3]} 1-0

[Event "*** Titled Tuesday Blitz"]
[Site "Chess.com"]
[Date "2019.05.07"]
[Round "9"]
[White "LonesomeGeorge1"]
[Black "ENEASZ"]
[Result "0-1"]
[WhiteElo "2364"]
[BlackElo "2504"]
[TimeControl "180+2"]
[EndTime "15:05:28 PDT"]
[Termination "ENEASZ won by resignation"]

1. e4 {[%clk 0:03:01.9]} 1... d6 {[%clk 0:02:59.8]} 2. d4 {[%clk 0:03:02.7]}
2... Nf6 {[%clk 0:02:58.1]} 3. Nc3 {[%clk 0:03:04.1]} 3... e5 {[%clk 0:02:58.3]}
4. Nf3 {[%clk 0:03:04.8]} 4... Nbd7 {[%clk 0:02:59.1]} 5. Bc4 {[%clk 0:03:04.7]}
5... Be7 {[%clk 0:03:00.7]} 6. a4 {[%clk 0:03:05.9]} 6... O-O {[%clk 0:03:01.5]}
7. a5 {[%clk 0:03:06.8]} 7... c6 {[%clk 0:03:03.2]} 8. O-O {[%clk 0:03:07.6]}
8... Rb8 {[%clk 0:03:04.8]} 9. Qe2 {[%clk 0:03:08.5]} 9... b5 {[%clk 0:03:05.4]}
10. axb6 {[%clk 0:03:10.4]} 10... axb6 {[%clk 0:03:07.3]} 11. d5 {[%clk
0:03:11.6]} 11... cxd5 {[%clk 0:03:04]} 12. exd5 {[%clk 0:03:10.8]} 12... Ne8
{[%clk 0:02:47.2]} 13. Ne1 {[%clk 0:02:56.9]} 13... f5 {[%clk 0:02:45.7]} 14. f4
{[%clk 0:02:57.5]} 14... Nef6 {[%clk 0:02:43.7]} 15. Nd3 {[%clk 0:02:51.7]}
15... b5 {[%clk 0:02:38.4]} 16. Nxb5 {[%clk 0:02:41.9]} 16... Rxb5 {[%clk
0:02:36.9]} 17. Bxb5 {[%clk 0:02:40.1]} 17... Qb6+ {[%clk 0:02:38]} 18. Kh1
{[%clk 0:02:36.3]} 18... Qxb5 {[%clk 0:02:38.9]} 19. fxe5 {[%clk 0:02:38.2]}
19... dxe5 {[%clk 0:02:36.7]} 20. Re1 {[%clk 0:02:05.1]} 20... e4 {[%clk
0:02:35.8]} 21. Nf4 {[%clk 0:02:05.2]} 21... Qxe2 {[%clk 0:02:22.3]} 22. Rxe2
{[%clk 0:02:07.1]} 22... Bd6 {[%clk 0:02:23.7]} 23. c4 {[%clk 0:01:59.4]} 23...
Ne5 {[%clk 0:02:22.9]} 24. b3 {[%clk 0:02:00.4]} 24... g5 {[%clk 0:02:19.4]} 25.
Ne6 {[%clk 0:01:48]} 25... Bxe6 {[%clk 0:02:18.9]} 26. dxe6 {[%clk 0:01:49.9]}
26... f4 {[%clk 0:02:20.4]} 27. Ra6 {[%clk 0:01:46.3]} 27... Be7 {[%clk
0:02:06.7]} 28. Bb2 {[%clk 0:01:36.6]} 28... Nd3 {[%clk 0:02:06.1]} 29. Bc3
{[%clk 0:01:13.9]} 29... f3 {[%clk 0:02:02.5]} 30. gxf3 {[%clk 0:01:11.4]} 30...
exf3 {[%clk 0:02:04.4]} 31. Rea2 {[%clk 0:00:35.6]} 31... Ne4 {[%clk 0:02:03.8]}
32. Bd4 {[%clk 0:00:21.9]} 32... f2 {[%clk 0:02:03.2]} 33. Bxf2 {[%clk 0:00:22]}
33... Nexf2+ {[%clk 0:02:01]} 34. Kg2 {[%clk 0:00:23]} 34... Nb4 {[%clk
0:01:59.7]} 35. Ra7 {[%clk 0:00:17.1]} 35... Bc5 {[%clk 0:01:52.5]} 36. Rc7
{[%clk 0:00:18.3]} 36... Bd6 {[%clk 0:01:42.7]} 37. Rd7 {[%clk 0:00:16.6]} 37...
Nxa2 {[%clk 0:01:43.6]} 38. Rxd6 {[%clk 0:00:17.1]} 38... Ne4 {[%clk 0:01:44.8]}
39. Ra6 {[%clk 0:00:11.2]} 39... Nb4 {[%clk 0:01:45.4]} 40. Rb6 {[%clk
0:00:11.8]} 40... Nd3 {[%clk 0:01:46.6]} 41. e7 {[%clk 0:00:11.8]} 41... Re8
{[%clk 0:01:46.6]} 42. Re6 {[%clk 0:00:12.4]} 42... Nf4+ {[%clk 0:01:47.4]} 43.
Kf3 {[%clk 0:00:12.5]} 43... Nxe6 {[%clk 0:01:49.3]} 44. Kxe4 {[%clk 0:00:14.4]}
0-1

[Event "*** Titled Tuesday Blitz"]
[Site "Chess.com"]
[Date "2019.05.07"]
[Round "9"]
[White "Komissarov_alex"]
[Black "Caisachess"]
[Result "0-1"]
[WhiteElo "2098"]
[BlackElo "2334"]
[TimeControl "180+2"]
[EndTime "15:05:46 PDT"]
[Termination "Caisachess won on time"]

1. d4 {[%clk 0:02:55.2]} 1... Nf6 {[%clk 0:03:00.6]} 2. Nf3 {[%clk 0:02:53.6]}
2... e6 {[%clk 0:03:01.6]} 3. e3 {[%clk 0:02:53.3]} 3... d5 {[%clk 0:03:00.6]}
4. Nbd2 {[%clk 0:02:50.3]} 4... c5 {[%clk 0:02:57.7]} 5. c3 {[%clk 0:02:49.5]}
5... Bd6 {[%clk 0:02:58.7]} 6. Bd3 {[%clk 0:02:48.9]} 6... O-O {[%clk
0:02:59.6]} 7. O-O {[%clk 0:02:48.1]} 7... b6 {[%clk 0:03:01]} 8. e4 {[%clk
0:02:47.2]} 8... Be7 {[%clk 0:02:51.5]} 9. e5 {[%clk 0:02:39.1]} 9... Ne8 {[%clk
0:02:52]} 10. Qe2 {[%clk 0:02:39]} 10... a5 {[%clk 0:02:48.8]} 11. Re1 {[%clk
0:02:38.7]} 11... Ba6 {[%clk 0:02:48.8]} 12. Nf1 {[%clk 0:02:37.1]} 12... Bxd3
{[%clk 0:02:43.3]} 13. Qxd3 {[%clk 0:02:35]} 13... c4 {[%clk 0:02:44.8]} 14. Qe3
{[%clk 0:02:25.2]} 14... b5 {[%clk 0:02:43.4]} 15. Qf4 {[%clk 0:02:23.8]} 15...
Nc6 {[%clk 0:02:36.8]} 16. h4 {[%clk 0:02:23.1]} 16... b4 {[%clk 0:02:36.5]} 17.
Ng3 {[%clk 0:02:12.2]} 17... f5 {[%clk 0:02:35.2]} 18. Ng5 {[%clk 0:02:00.5]}
18... Nc7 {[%clk 0:02:29.5]} 19. Nh5 {[%clk 0:01:46.1]} 19... Qe8 {[%clk
0:02:26.4]} 20. Qf3 {[%clk 0:01:41.9]} 20... h6 {[%clk 0:02:18.4]} 21. Nh3
{[%clk 0:01:35.3]} 21... Bxh4 {[%clk 0:02:16.7]} 22. N3f4 {[%clk 0:01:33.5]}
22... Bg5 {[%clk 0:02:11.1]} 23. Qh3 {[%clk 0:01:18.7]} 23... a4 {[%clk
0:02:04.9]} 24. Re3 {[%clk 0:01:15.3]} 24... a3 {[%clk 0:02:03.7]} 25. bxa3
{[%clk 0:01:09.2]} 25... bxc3 {[%clk 0:02:04.5]} 26. Rg3 {[%clk 0:01:03.3]}
26... Nxd4 {[%clk 0:02:03.7]} 27. Nxg7 {[%clk 0:00:55.3]} 27... Kxg7 {[%clk
0:02:02.3]} 28. Nh5+ {[%clk 0:00:42.5]} 28... Kf7 {[%clk 0:01:58.7]} 29. Bxg5
{[%clk 0:00:21.6]} 29... Ne2+ {[%clk 0:01:59.3]} 30. Kh2 {[%clk 0:00:15.5]}
30... Nxg3 {[%clk 0:02:00.3]} 31. Nf6 {[%clk 0:00:09.4]} 31... Qc6 {[%clk
0:01:18.3]} 0-1